fUSD/lending_fUSD_20260625
["ID","MTS","AMOUNT","RATE_DAILY","PERIOD"]
[426384972,1782336745000,-638.758113,0.00031961,7]
[426384973,1782336745000,-769.628488,0.00031961,7]
[426384968,1782336745000,-638.758113,0.00031961,7]
[426384971,1782336745000,-639.397884,0.00031961,7]
[426384964,1782336745000,-543.455229,0.00031961,7]
[426384974,1782336745000,-237.617314,0.00031961,7]
[426384969,1782336745000,-237.617314,0.00031961,7]
[426384970,1782336745000,-543.455229,0.00031961,7]
[426384975,1782336745000,-543.455229,0.00031961,7]
[426384977,1782336745000,-638.758113,0.00031961,7]
[426384987,1782336745000,-552.345332,0.00031961,7]
[426384976,1782336745000,-639.397884,0.00031961,7]
[426384978,1782336745000,-237.617314,0.00031961,7]
[426384967,1782336745000,-639.397884,0.00031961,7]
[426385012,1782336745000,-361.25,0.00031961,7]
[426385063,1782336745000,-201.534647,0.00031961,7]
[426385019,1782336745000,-165.810895,0.00031961,7]
[426385048,1782336745000,-484.428409,0.00031961,7]
[426385044,1782336745000,-167.321536,0.00031961,7]
[426385046,1782336745000,-281.396575,0.00031961,7]
[426385051,1782336745000,-1096.796721,0.00031961,7]
[426385052,1782336745000,-484.428409,0.00031961,7]
[426385053,1782336745000,-167.321536,0.00031961,7]
[426385061,1782336745000,-1096.796721,0.00031961,7]
[426385050,1782336745000,-201.534647,0.00031961,7]
[426385055,1782336745000,-207.497145,0.00031961,7]
[426385056,1782336745000,-201.534647,0.00031961,7]
[426385060,1782336745000,-201.534647,0.00031961,7]
[426385054,1782336745000,-1686.762979,0.00031961,7]
[426385058,1782336745000,-484.428409,0.00031961,7]
[426385057,1782336745000,-1096.796721,0.00031961,7]
[426385059,1782336745000,-1686.762979,0.00031961,7]
[426385062,1782336745000,-1686.762979,0.00031961,7]
[426385072,1782336745000,-627.181528,0.00031961,7]
[426385065,1782336745000,-1096.796721,0.00031961,7]
[426385071,1782336745000,-257.844654,0.00031961,7]
[426385068,1782336745000,-257.844654,0.00031961,7]
[426385066,1782336745000,-1686.762979,0.00031961,7]
[426385067,1782336745000,-444.368268,0.00031961,7]
[426385070,1782336745000,-444.368268,0.00031961,7]
[426385064,1782336745000,-444.368268,0.00031961,7]
[426385069,1782336745000,-627.181528,0.00031961,7]
[426385073,1782336745000,-444.368268,0.00031961,7]
[426385015,1782336745000,-151.0,0.00031961,7]
[426385042,1782336745000,-281.396575,0.00031961,7]
[426385043,1782336745000,-484.428409,0.00031961,7]
[426385074,1782336745000,-257.844654,0.00031961,7]
[426385038,1782336745000,-1835.440827,0.00031961,7]
[426385047,1782336745000,-167.321536,0.00031961,7]
[426385018,1782336745000,-280.914611,0.00031961,7]
[426385016,1782336745000,-2211.501728,0.00031961,7]
[426385013,1782336745000,-165.810895,0.00031961,7]
[426385023,1782336745000,-1835.440827,0.00031961,7]
[426385017,1782336745000,-497.562277,0.00031961,7]
[426385024,1782336745000,-2211.501728,0.00031961,7]
[426385020,1782336745000,-361.25,0.00031961,7]
[426385021,1782336745000,-346.950442,0.00031961,7]
[426385022,1782336745000,-151.0,0.00031961,7]
[426385026,1782336745000,-280.914611,0.00031961,7]
[426385036,1782336745000,-280.914611,0.00031961,7]
[426385025,1782336745000,-497.562277,0.00031961,7]
[426385029,1782336745000,-1835.440827,0.00031961,7]
[426385014,1782336745000,-346.950442,0.00031961,7]
[426385028,1782336745000,-361.25,0.00031961,7]
[426385049,1782336745000,-207.497145,0.00031961,7]
[426385045,1782336745000,-207.497145,0.00031961,7]
[426385041,1782336745000,-1835.440827,0.00031961,7]
[426385040,1782336745000,-207.497145,0.00031961,7]
[426385027,1782336745000,-165.810895,0.00031961,7]
[426385037,1782336745000,-281.396575,0.00031961,7]
[426385039,1782336745000,-167.321536,0.00031961,7]
[426385034,1782336745000,-361.25,0.00031961,7]
[426385033,1782336745000,-280.914611,0.00031961,7]
[426385032,1782336745000,-281.396575,0.00031961,7]
[426385031,1782336745000,-497.562277,0.00031961,7]
[426385030,1782336745000,-2211.501728,0.00031961,7]
[426385035,1782336745000,-2211.501728,0.00031961,7]
[426385123,1782336746000,-487.210801,0.00031961,7]
[426385118,1782336746000,-454.397235,0.00031961,7]
[426385116,1782336746000,-216.87364,0.00031961,7]
[426385120,1782336746000,-487.210801,0.00031961,7]
[426385105,1782336746000,-428.000529,0.00031961,7]
[426385110,1782336746000,-428.000529,0.00031961,7]
[426385112,1782336746000,-203.842237,0.00031961,7]
[426385108,1782336746000,-203.842237,0.00031961,7]
[426385111,1782336746000,-1314.268822,0.00031961,7]
[426385109,1782336746000,-1950.334549,0.00031961,7]
[426385113,1782336746000,-1950.334549,0.00031961,7]
[426385115,1782336746000,-454.397235,0.00031961,7]
[426385126,1782336746000,-3999.300853,0.00031961,7]
[426385117,1782336746000,-454.397235,0.00031961,7]
[426385124,1782336746000,-216.87364,0.00031961,7]
[426385122,1782336746000,-216.87364,0.00031961,7]
[426385119,1782336746000,-216.87364,0.00031961,7]
[426385121,1782336746000,-487.210801,0.00031961,7]
[426385136,1782336746000,-400.685321,0.00031961,7]
[426385125,1782336746000,-487.210801,0.00031961,7]
[426385129,1782336746000,-3999.300853,0.00031961,7]
[426385137,1782336746000,-351.956606,0.00031961,7]
[426385130,1782336746000,-400.685321,0.00031961,7]
[426385128,1782336746000,-3999.300853,0.00031961,7]
[426385133,1782336746000,-351.956606,0.00031961,7]
[426385107,1782336746000,-1314.268822,0.00031961,7]
[426385114,1782336746000,-454.397235,0.00031961,7]
[426385106,1782336746000,-434.300846,0.00031961,7]
[426385094,1782336746000,-434.300846,0.00031961,7]
[426385102,1782336746000,-203.842237,0.00031961,7]
[426385075,1782336746000,-627.181528,0.00031961,7]
[426385077,1782336746000,-627.181528,0.00031961,7]
[426385079,1782336746000,-207.619142,0.00031961,7]
[426385078,1782336746000,-207.619142,0.00031961,7]
[426385076,1782336746000,-257.844654,0.00031961,7]
[426385080,1782336746000,-151.0,0.00031961,7]
[426385087,1782336746000,-170.863335,0.00031961,7]
[426385088,1782336746000,-173.826924,0.00031961,7]
[426385086,1782336746000,-151.0,0.00031961,7]
[426385082,1782336746000,-151.0,0.00031961,7]
[426385081,1782336746000,-207.619142,0.00031961,7]
[426385084,1782336746000,-170.863335,0.00031961,7]
[426385083,1782336746000,-207.619142,0.00031961,7]
[426385085,1782336746000,-170.863335,0.00031961,7]
[426385089,1782336746000,-151.0,0.00031961,7]
[426385091,1782336746000,-173.826924,0.00031961,7]
[426385096,1782336746000,-434.300846,0.00031961,7]
[426385092,1782336746000,-173.826924,0.00031961,7]
[426385101,1782336746000,-434.300846,0.00031961,7]
[426385093,1782336746000,-173.826924,0.00031961,7]
[426385100,1782336746000,-428.000529,0.00031961,7]
[426385095,1782336746000,-428.000529,0.00031961,7]
[426385090,1782336746000,-170.863335,0.00031961,7]
[426385097,1782336746000,-1314.268822,0.00031961,7]
[426385099,1782336746000,-1950.334549,0.00031961,7]
[426385098,1782336746000,-203.842237,0.00031961,7]
[426385103,1782336746000,-1314.268822,0.00031961,7]
[426385104,1782336746000,-1950.334549,0.00031961,7]
[426385127,1782336746000,-3999.300853,0.00031961,7]
[426385134,1782336746000,-400.685321,0.00031961,7]
[426385132,1782336746000,-400.685321,0.00031961,7]
[426385166,1782336746000,-267.328353,0.00031961,7]
[426385168,1782336746000,-544.238257,0.00031961,7]
[426385167,1782336746000,-327.60059,0.00031961,7]
[426385171,1782336746000,-1500.578985,0.00031961,7]
[426385173,1782336746000,-267.328353,0.00031961,7]
[426385179,1782336746000,-256.452319,0.00031961,7]
[426385182,1782336746000,-1593.628566,0.00031961,7]
[426385172,1782336746000,-327.60059,0.00031961,7]
[426385174,1782336746000,-1593.628566,0.00031961,7]
[426385175,1782336746000,-626.698309,0.00031961,7]
[426385180,1782336746000,-626.698309,0.00031961,7]
[426385178,1782336746000,-1593.628566,0.00031961,7]
[426385176,1782336746000,-1500.578985,0.00031961,7]
[426385183,1782336746000,-256.452319,0.00031961,7]
[426385181,1782336746000,-267.328353,0.00031961,7]
[426385194,1782336746000,-221.55951,0.00031961,7]
[426385185,1782336746000,-256.452319,0.00031961,7]
[426385193,1782336746000,-194.400423,0.00031961,7]
[426385190,1782336746000,-151.0,0.00031961,7]
[426385187,1782336746000,-151.0,0.00031961,7]
[426385184,1782336746000,-151.0,0.00031961,7]
[426385189,1782336746000,-1623.552044,0.00031961,7]
[426385188,1782336746000,-256.452319,0.00031961,7]
[426385186,1782336746000,-1623.552044,0.00031961,7]
[426385191,1782336746000,-1623.552044,0.00031961,7]
[426385192,1782336746000,-1623.552044,0.00031961,7]
[426385135,1782336746000,-351.956606,0.00031961,7]
[426385165,1782336746000,-560.542345,0.00031961,7]
[426385163,1782336746000,-626.698309,0.00031961,7]
[426385177,1782336746000,-267.328353,0.00031961,7]
[426385164,1782336746000,-1500.578985,0.00031961,7]
[426385169,1782336746000,-1593.628566,0.00031961,7]
[426385139,1782336746000,-151.0,0.00031961,7]
[426385140,1782336746000,-434.263148,0.00031961,7]
[426385138,1782336746000,-758.933344,0.00031961,7]
[426385145,1782336746000,-153.757831,0.00031961,7]
[426385144,1782336746000,-758.933344,0.00031961,7]
[426385143,1782336746000,-434.263148,0.00031961,7]
[426385142,1782336746000,-153.757831,0.00031961,7]
[426385141,1782336746000,-758.933344,0.00031961,7]
[426385146,1782336746000,-560.542345,0.00031961,7]
[426385148,1782336746000,-151.0,0.00031961,7]
[426385149,1782336746000,-544.238257,0.00031961,7]
[426385147,1782336746000,-434.263148,0.00031961,7]
[426385150,1782336746000,-758.933344,0.00031961,7]
[426385131,1782336746000,-351.956606,0.00031961,7]
[426385162,1782336746000,-544.238257,0.00031961,7]
[426385155,1782336746000,-544.238257,0.00031961,7]
[426385161,1782336746000,-327.60059,0.00031961,7]
[426385159,1782336746000,-1500.578985,0.00031961,7]
[426385170,1782336746000,-626.698309,0.00031961,7]
[426385153,1782336746000,-151.0,0.00031961,7]
[426385160,1782336746000,-560.542345,0.00031961,7]
[426385152,1782336746000,-560.542345,0.00031961,7]
[426385157,1782336746000,-153.757831,0.00031961,7]
[426385151,1782336746000,-153.757831,0.00031961,7]
[426385158,1782336746000,-151.0,0.00031961,7]
[426385154,1782336746000,-434.263148,0.00031961,7]
[426385156,1782336746000,-327.60059,0.00031961,7]
[426385243,1782336747000,-188.764914,0.00031961,7]
[426385236,1782336747000,-1163.2134,0.00031961,7]
[426385234,1782336747000,-188.764914,0.00031961,7]
[426385244,1782336747000,-151.0,0.00031961,7]
[426385235,1782336747000,-183.653084,0.00031961,7]
[426385224,1782336747000,-200.986639,0.00031961,7]
[426385254,1782336747000,-212.87611852,0.00031979,14]
[426385226,1782336747000,-188.764914,0.00031961,7]
[426385228,1782336747000,-183.653084,0.00031961,7]
[426385229,1782336747000,-1163.2134,0.00031961,7]
[426385237,1782336747000,-151.0,0.00031961,7]
[426385223,1782336747000,-182.104539,0.00031961,7]
[426385230,1782336747000,-151.0,0.00031961,7]
[426385238,1782336747000,-151.0,0.00031961,7]
[426385249,1782336747000,-498.91336495,0.00031961,23]
[426385240,1782336747000,-188.764914,0.00031961,7]
[426385242,1782336747000,-3847.194923,0.00031961,7]
[426385241,1782336747000,-289.146089,0.00031961,7]
[426385245,1782336747000,-250.492452,0.00031961,7]
[426385247,1782336747000,-3847.194923,0.00031961,7]
[426385250,1782336747000,-1919.93,0.00031963,30]
[426385248,1782336747000,-151.0,0.00031961,7]
[426385251,1782336747000,-1597.08697215,0.00031977,2]
[426385252,1782336747000,-200.92012322,0.00031979,14]
[426385253,1782336747000,-210.49510413,0.00031979,14]
[426385256,1782336747000,-100000.0,0.0003199,120]
[426385246,1782336747000,-222.202714,0.00031961,7]
[426385255,1782336747000,-210.80140171,0.00031979,14]
[426385239,1782336747000,-151.0,0.00031961,7]
[426385233,1782336747000,-183.437026,0.00031961,7]
[426385195,1782336747000,-221.55951,0.00031961,7]
[426385225,1782336747000,-183.437026,0.00031961,7]
[426385196,1782336747000,-221.55951,0.00031961,7]
[426385197,1782336747000,-221.55951,0.00031961,7]
[426385198,1782336747000,-151.0,0.00031961,7]
[426385199,1782336747000,-151.0,0.00031961,7]
[426385200,1782336747000,-151.0,0.00031961,7]
[426385202,1782336747000,-151.0,0.00031961,7]
[426385201,1782336747000,-151.0,0.00031961,7]
[426385204,1782336747000,-158.80053,0.00031961,7]
[426385206,1782336747000,-151.0,0.00031961,7]
[426385203,1782336747000,-151.0,0.00031961,7]
[426385205,1782336747000,-151.0,0.00031961,7]
[426385207,1782336747000,-200.986639,0.00031961,7]
[426385219,1782336747000,-183.437026,0.00031961,7]
[426385222,1782336747000,-1163.2134,0.00031961,7]
[426385209,1782336747000,-367.116955,0.00031961,7]
[426385208,1782336747000,-151.0,0.00031961,7]
[426385213,1782336747000,-183.437026,0.00031961,7]
[426385212,1782336747000,-200.986639,0.00031961,7]
[426385214,1782336747000,-367.116955,0.00031961,7]
[426385210,1782336747000,-182.104539,0.00031961,7]
[426385211,1782336747000,-151.0,0.00031961,7]
[426385217,1782336747000,-182.104539,0.00031961,7]
[426385215,1782336747000,-183.653084,0.00031961,7]
[426385216,1782336747000,-1163.2134,0.00031961,7]
[426385218,1782336747000,-200.986639,0.00031961,7]
[426385221,1782336747000,-367.116955,0.00031961,7]
[426385232,1782336747000,-151.0,0.00031961,7]
[426385227,1782336747000,-367.116955,0.00031961,7]
[426385220,1782336747000,-183.653084,0.00031961,7]
[426385258,1782336747000,-1158.16,0.00031995,30]
[426385231,1782336747000,-182.104539,0.00031961,7]
[426385260,1782336747000,-100000.0,0.00031999,7]
[426385288,1782336747000,-3000.0,0.00032,14]
[426385294,1782336747000,-2000.0,0.00032,3]
[426385292,1782336747000,-1517.69,0.00032,20]
[426385291,1782336747000,-24840.15535614,0.00032,2]
[426385297,1782336747000,-695.82269722,0.00032,15]
[426385300,1782336747000,-30000.0,0.00032,60]
[426385299,1782336747000,-200000.0,0.00032,15]
[426385301,1782336747000,-151.0,0.00032,120]
[426385304,1782336747000,-417.8219,0.00032,2]
[426385306,1782336747000,-800.0,0.00032,5]
[426385302,1782336747000,-60000.0,0.00032,40]
[426385305,1782336747000,-1408.2717,0.00032,2]
[426385303,1782336747000,-41782.1853,0.00032,2]
[426385290,1782336747000,-151.17690722,0.00032,14]
[426385310,1782336747000,-1296.38,0.00032,30]
[426385307,1782336747000,-75264.0,0.00032,30]
[426385309,1782336747000,-1296.387,0.00032,30]
[426385298,1782336747000,-4816.38069576,0.00032,30]
[426385312,1782336747000,-1296.387,0.00032,30]
[426385320,1782336747000,-500.0,0.00032,5]
[426385314,1782336747000,-30819.73,0.00032,25]
[426385313,1782336747000,-1296.38,0.00032,10]
[426385316,1782336747000,-96171.30887562,0.00032,2]
[426385318,1782336747000,-1769.99681069,0.00032,2]
[426385311,1782336747000,-1296.387,0.00032,30]
[426385317,1782336747000,-5000.0,0.00032,2]
[426385319,1782336747000,-500.0,0.00032,5]
[426385269,1782336747000,-15000.0,0.00032,2]
[426385308,1782336747000,-1296.387,0.00032,30]
[426385289,1782336747000,-2020.0,0.00032,30]
[426385315,1782336747000,-300.0,0.00032,120]
[426385293,1782336747000,-1517.25,0.00032,20]
[426385287,1782336747000,-53600.49911852,0.00032,120]
[426385270,1782336747000,-12500.0,0.00032,2]
[426385257,1782336747000,-464.09,0.0003199,7]
[426385268,1782336747000,-10000.0,0.00032,2]
[426385259,1782336747000,-100000.0,0.00031999,7]
[426385266,1782336747000,-11080.72,0.00032,2]
[426385262,1782336747000,-50000.0,0.00032,4]
[426385263,1782336747000,-50000.0,0.00032,5]
[426385265,1782336747000,-2500.0,0.00032,2]
[426385264,1782336747000,-50000.0,0.00032,6]
[426385267,1782336747000,-10000.0,0.00032,2]
[426385271,1782336747000,-12500.0,0.00032,2]
[426385274,1782336747000,-25000.0,0.00032,2]
[426385277,1782336747000,-589.0,0.00032,120]
[426385261,1782336747000,-15115.1,0.00031999,7]
[426385279,1782336747000,-50000.0,0.00032,30]
[426385276,1782336747000,-4555220.91882752,0.00032,7]
[426385295,1782336747000,-212.02150291,0.00032,3]
[426385296,1782336747000,-105580.3269371,0.00032,15]
[426385284,1782336747000,-800.0,0.00032,5]
[426385285,1782336747000,-800.0,0.00032,5]
[426385278,1782336747000,-10000000.0,0.00032,120]
[426385272,1782336747000,-22500.0,0.00032,2]
[426385286,1782336747000,-800.0,0.00032,5]
[426385281,1782336747000,-3000.0,0.00032,25]
[426385273,1782336747000,-2500.0,0.00032,2]
[426385282,1782336747000,-800.0,0.00032,5]
[426385280,1782336747000,-909.89854762,0.00032,3]
[426385283,1782336747000,-800.0,0.00032,5]
[426385275,1782336747000,-10000.0,0.00032,2]
[426385348,1782336748000,-151.0,0.00032,7]
[426385351,1782336748000,-358.741632,0.00032,7]
[426385352,1782336748000,-161.517257,0.00032,7]
[426385349,1782336748000,-177.932563,0.00032,7]
[426385353,1782336748000,-319.591474,0.00032,7]
[426385354,1782336748000,-177.932563,0.00032,7]
[426385356,1782336748000,-319.591474,0.00032,7]
[426385350,1782336748000,-319.591474,0.00032,7]
[426385346,1782336748000,-177.932563,0.00032,7]
[426385360,1782336748000,-1014.77499,0.00032,7]
[426385363,1782336748000,-195.534964,0.00032,7]
[426385359,1782336748000,-319.591484,0.00032,7]
[426385358,1782336748000,-161.517257,0.00032,7]
[426385355,1782336748000,-161.517257,0.00032,7]
[426385357,1782336748000,-177.932567,0.00032,7]
[426385373,1782336748000,-151.0,0.00032,7]
[426385362,1782336748000,-151.0,0.00032,7]
[426385374,1782336748000,-151.0,0.00032,7]
[426385365,1782336748000,-195.534964,0.00032,7]
[426385347,1782336748000,-358.741634,0.00032,7]
[426385375,1782336748000,-151.0,0.00032,7]
[426385361,1782336748000,-161.517261,0.00032,7]
[426385345,1782336748000,-617.27864,0.00032,7]
[426385329,1782336748000,-251.38278,0.00032,7]
[426385343,1782336748000,-358.741634,0.00032,7]
[426385364,1782336748000,-1014.77499,0.00032,7]
[426385322,1782336748000,-540.171264,0.00032,5]
[426385323,1782336748000,-700.0,0.00032,2]
[426385321,1782336748000,-500.0,0.00032,5]
[426385324,1782336748000,-278.304947,0.00032,7]
[426385326,1782336748000,-278.304947,0.00032,7]
[426385328,1782336748000,-278.304947,0.00032,7]
[426385327,1782336748000,-904.607602,0.00032,7]
[426385336,1782336748000,-251.38278,0.00032,7]
[426385330,1782336748000,-904.607602,0.00032,7]
[426385344,1782336748000,-151.0,0.00032,7]
[426385325,1782336748000,-251.38278,0.00032,7]
[426385335,1782336748000,-904.607602,0.00032,7]
[426385333,1782336748000,-251.38278,0.00032,7]
[426385331,1782336748000,-151.0,0.00032,7]
[426385334,1782336748000,-617.278644,0.00032,7]
[426385337,1782336748000,-151.0,0.00032,7]
[426385339,1782336748000,-358.741634,0.00032,7]
[426385338,1782336748000,-617.278644,0.00032,7]
[426385340,1782336748000,-151.0,0.00032,7]
[426385341,1782336748000,-904.607601,0.00032,7]
[426385342,1782336748000,-617.278644,0.00032,7]
[426385332,1782336748000,-278.304955,0.00032,7]
[426385370,1782336748000,-151.0,0.00032,7]
[426385372,1782336748000,-151.0,0.00032,7]
[426385366,1782336748000,-1014.77499,0.00032,7]
[426385394,1782336748000,-157.42506,0.00032,7]
[426385399,1782336748000,-1239.618132,0.00032,7]
[426385401,1782336748000,-2002.035991,0.00032,7]
[426385402,1782336748000,-158.885528,0.00032,7]
[426385403,1782336748000,-157.425069,0.00032,7]
[426385405,1782336748000,-163.037689,0.00032,7]
[426385404,1782336748000,-1239.618135,0.00032,7]
[426385407,1782336748000,-825.021755,0.00032,7]
[426385406,1782336748000,-1800.881271,0.00032,7]
[426385412,1782336748000,-151.0,0.00032,7]
[426385400,1782336748000,-151.0,0.00032,7]
[426385409,1782336748000,-158.885528,0.00032,7]
[426385413,1782336748000,-825.021755,0.00032,7]
[426385411,1782336748000,-1800.881271,0.00032,7]
[426385415,1782336748000,-1511.313423,0.00032,7]
[426385416,1782336748000,-1340.578624,0.00032,7]
[426385414,1782336748000,-151.0,0.00032,7]
[426385419,1782336748000,-151.0,0.00032,7]
[426385417,1782336748000,-158.885528,0.00032,7]
[426385420,1782336748000,-151.0,0.00032,7]
[426385418,1782336748000,-1800.881271,0.00032,7]
[426385367,1782336748000,-151.0,0.00032,7]
[426385408,1782336748000,-1340.578624,0.00032,7]
[426385397,1782336748000,-2002.035988,0.00032,7]
[426385410,1782336748000,-163.037696,0.00032,7]
[426385398,1782336748000,-163.037689,0.00032,7]
[426385392,1782336748000,-1239.618132,0.00032,7]
[426385368,1782336748000,-1014.774992,0.00032,7]
[426385369,1782336748000,-195.534964,0.00032,7]
[426385371,1782336748000,-195.534955,0.00032,7]
[426385377,1782336748000,-494.464078,0.00032,7]
[426385378,1782336748000,-801.352969,0.00032,7]
[426385380,1782336748000,-801.352969,0.00032,7]
[426385388,1782336748000,-2002.035988,0.00032,7]
[426385383,1782336748000,-494.464082,0.00032,7]
[426385382,1782336748000,-801.352969,0.00032,7]
[426385387,1782336748000,-1478.915538,0.00032,7]
[426385376,1782336748000,-151.0,0.00032,7]
[426385381,1782336748000,-494.464078,0.00032,7]
[426385385,1782336748000,-1478.915538,0.00032,7]
[426385386,1782336748000,-1478.915538,0.00032,7]
[426385379,1782336748000,-494.464078,0.00032,7]
[426385384,1782336748000,-801.352978,0.00032,7]
[426385389,1782336748000,-1239.618132,0.00032,7]
[426385390,1782336748000,-157.42506,0.00032,7]
[426385391,1782336748000,-1478.915542,0.00032,7]
[426385393,1782336748000,-163.037689,0.00032,7]
[426385396,1782336748000,-157.42506,0.00032,7]
[426385395,1782336748000,-2002.035988,0.00032,7]
[426385463,1782336749000,-151.0,0.00032,7]
[426385461,1782336749000,-207.784733,0.00032,7]
[426385459,1782336749000,-151.0,0.00032,7]
[426385453,1782336749000,-2132.554762,0.00032,7]
[426385457,1782336749000,-151.0,0.00032,7]
[426385452,1782336749000,-285.102719,0.00032,7]
[426385456,1782336749000,-151.0,0.00032,7]
[426385454,1782336749000,-151.0,0.00032,7]
[426385455,1782336749000,-151.0,0.00032,7]
[426385451,1782336749000,-430.449776,0.00032,7]
[426385464,1782336749000,-151.0,0.00032,7]
[426385458,1782336749000,-151.0,0.00032,7]
[426385462,1782336749000,-151.0,0.00032,7]
[426385475,1782336749000,-2022.317623,0.00032,7]
[426385469,1782336749000,-2022.317623,0.00032,7]
[426385472,1782336749000,-151.0,0.00032,7]
[426385468,1782336749000,-274.389312,0.00032,7]
[426385471,1782336749000,-151.0,0.00032,7]
[426385466,1782336749000,-420.003591,0.00032,7]
[426385470,1782336749000,-151.0,0.00032,7]
[426385467,1782336749000,-207.784733,0.00032,7]
[426385478,1782336749000,-207.784736,0.00032,7]
[426385474,1782336749000,-420.003591,0.00032,7]
[426385476,1782336749000,-274.389312,0.00032,7]
[426385479,1782336749000,-420.003585,0.00032,7]
[426385460,1782336749000,-420.003591,0.00032,7]
[426385465,1782336749000,-151.0,0.00032,7]
[426385449,1782336749000,-722.039734,0.00032,7]
[426385426,1782336749000,-430.449785,0.00032,7]
[426385445,1782336749000,-430.449785,0.00032,7]
[426385473,1782336749000,-207.784733,0.00032,7]
[426385423,1782336749000,-151.0,0.00032,7]
[426385422,1782336749000,-1511.313423,0.00032,7]
[426385421,1782336749000,-825.021755,0.00032,7]
[426385424,1782336749000,-1340.578624,0.00032,7]
[426385433,1782336749000,-825.02175,0.00032,7]
[426385431,1782336749000,-1800.881277,0.00032,7]
[426385430,1782336749000,-245.452503,0.00032,7]
[426385428,1782336749000,-285.102722,0.00032,7]
[426385436,1782336749000,-1340.578621,0.00032,7]
[426385427,1782336749000,-1297.28405,0.00032,7]
[426385435,1782336749000,-2132.554757,0.00032,7]
[426385425,1782336749000,-722.039739,0.00032,7]
[426385432,1782336749000,-151.0,0.00032,7]
[426385429,1782336749000,-158.885518,0.00032,7]
[426385434,1782336749000,-1511.313423,0.00032,7]
[426385440,1782336749000,-285.102722,0.00032,7]
[426385437,1782336749000,-722.039739,0.00032,7]
[426385439,1782336749000,-430.449785,0.00032,7]
[426385438,1782336749000,-1297.28405,0.00032,7]
[426385446,1782336749000,-285.102722,0.00032,7]
[426385443,1782336749000,-722.039739,0.00032,7]
[426385441,1782336749000,-1511.313423,0.00032,7]
[426385448,1782336749000,-2132.554757,0.00032,7]
[426385444,1782336749000,-1297.28405,0.00032,7]
[426385447,1782336749000,-185.236606,0.00032,7]
[426385442,1782336749000,-2132.554757,0.00032,7]
[426385450,1782336749000,-1297.28404,0.00032,7]
[426385480,1782336749000,-2022.317623,0.00032,7]
[426385532,1782336749000,-416.247576,0.00032,7]
[426385483,1782336749000,-2022.317621,0.00032,7]
[426385517,1782336749000,-803.577437,0.00032,7]
[426385515,1782336749000,-151.0,0.00032,7]
[426385516,1782336749000,-921.50581,0.00032,7]
[426385511,1782336749000,-151.0,0.00032,7]
[426385514,1782336749000,-950.714616,0.00032,7]
[426385513,1782336749000,-664.063087,0.00032,7]
[426385520,1782336749000,-921.50581,0.00032,7]
[426385531,1782336749000,-779.83154,0.00032,7]
[426385530,1782336749000,-151.0,0.00032,7]
[426385519,1782336749000,-158.656264,0.00032,7]
[426385521,1782336749000,-803.577437,0.00032,7]
[426385523,1782336749000,-151.0,0.00032,7]
[426385512,1782336749000,-921.50581,0.00032,7]
[426385522,1782336749000,-664.063092,0.00032,7]
[426385525,1782336749000,-921.505815,0.00032,7]
[426385524,1782336749000,-779.83154,0.00032,7]